bitfinex/quotes_ETHUSD_20241120
["timestamp","ask_amount","ask_price","bid_price","bid_amount"]
[1732075897575,0.65353624,3088.5,3088.1,0.7725]
[1732075897862,0.0599924,3088.6,3088.3,0.32379]
[1732075898195,0.0599924,3088.7,3088.3,0.32379]
[1732075898736,0.0599924,3088.7,3088.4,0.32379]
[1732075898936,0.0599924,3088.8,3088.3,0.32379]
[1732075899129,0.0599924,3088.8,3088.1,1.09632]
[1732075899325,0.0599924,3088.8,3088.2,0.32381]
[1732075899326,3.23761,3088.7,3088.2,0.32381]
[1732075899553,3.2957724,3088.6,3088.1,0.7725]
[1732075901963,3.0,3089.1,3088.1,0.7725]
[1732075901964,6.23728,3089.1,3088.1,0.7725]
[1732075902267,6.2972724,3089.1,3088.4,0.8288]
[1732075902466,10.2343004,3089.1,3088.5,0.32377]
[1732075902663,6.937028,3089.1,3088.5,0.32377]
[1732075903005,0.6937028,3089.0,3088.5,0.32377]
[1732075903145,0.6937028,3089.0,3088.6,0.32377]
[1732075903553,0.6937028,3089.0,3088.4,0.8288]
[1732075903849,0.0599924,3088.9,3088.5,0.32378]
[1732075904053,3.237,3089.3,3088.8,0.8288]
[1732075904253,3.884377,3089.3,3088.8,0.8288]
[1732075904504,3.884377,3089.3,3088.8,1.15254]
[1732075904801,3.884377,3089.3,3088.8,0.8288]
[1732075904802,0.647377,3089.3,3088.8,0.8288]
[1732075905102,0.647377,3089.3,3088.8,1.15254]
[1732075905751,0.0599924,3089.4,3088.9,0.32373]
[1732075905951,3.2967624,3089.5,3088.9,0.32373]
[1732075906379,3.0,3089.6,3089.0,0.32372]
[1732075906555,3.323657,3089.6,3089.0,0.32372]
[1732075906986,3.323657,3089.6,3089.1,0.8288]
[1732075907180,3.323657,3089.6,3089.1,1.15251]
[1732075907390,3.323657,3089.6,3089.1,0.8288]
[1732075907391,6.560327,3089.6,3089.1,0.8288]
[1732075908589,4.2765121,3089.5,3089.1,0.8288]
[1732075909328,7.5133821,3089.5,3089.1,0.8288]
[1732075909535,3.23691,3089.4,3089.1,0.8288]
[1732075909698,0.0599924,3089.3,3089.1,0.8288]
[1732075912386,3.2970524,3089.3,3089.1,0.8288]
[1732075912624,0.81135761,3089.3,3089.1,0.8288]
[1732075913122,0.0599924,3089.3,3089.1,0.8288]
[1732075914100,3.2970424,3089.3,3089.1,0.8288]
[1732075914509,0.0599924,3089.3,3089.1,0.8288]
[1732075914715,0.0599924,3089.4,3089.1,0.8288]
[1732075914909,0.71334764,3089.4,3089.1,0.8288]
[1732075915114,3.23705,3089.3,3088.6,0.8288]
[1732075915321,3.2372,3089.1,3088.6,1.15257]
[1732075915620,0.0599924,3089.0,3088.6,1.15257]
[1732075916243,0.0599924,3089.2,3088.6,1.15257]
[1732075916541,3.2971224,3089.2,3088.6,1.15256]
[1732075917934,3.2971224,3089.2,3088.6,1.47632]
[1732075918289,3.2971224,3089.2,3088.6,1.15256]
[1732075918823,3.23681,3089.5,3088.8,0.32374]
[1732075919024,3.23681,3089.5,3088.9,1.15253]
[1732075919025,3.96419,3089.5,3088.9,1.15253]
[1732075919344,3.2969024,3089.4,3088.9,0.8288]
[1732075919539,0.0599924,3089.4,3088.9,0.8288]
[1732075919750,3.23681,3089.5,3088.9,0.8288]
[1732075920051,0.38967264,3089.4,3088.9,0.8288]
[1732075920229,3.23705,3089.3,3088.9,0.8288]
[1732075920401,3.23683,3089.5,3088.9,0.8288]
[1732075920611,3.23726,3089.1,3088.9,0.8288]
[1732075920917,0.0599924,3089.0,3088.6,0.8288]
[1732075921129,3.23758,3088.8,3088.1,0.32381]
[1732075921327,0.8603924,3089.3,3088.7,0.8288]
[1732075921541,3.23689,3089.4,3088.8,0.32374]
[1732075921744,0.0599924,3089.2,3089.0,0.32372]
[1732075921903,3.2367,3089.6,3089.0,0.32372]
[1732075922364,0.0599924,3089.5,3089.0,0.32372]
[1732075922567,3.62644164,3089.5,3088.8,0.32374]
[1732075922747,3.62644164,3089.5,3088.9,0.32373]
[1732075923128,3.62644164,3089.5,3088.7,0.8288]
[1732075923129,0.38966164,3089.5,3088.7,0.8288]
[1732075923327,0.38966164,3089.5,3088.7,1.15256]
[1732075923328,3.23701,3089.3,3088.7,1.15256]
[1732075923566,0.0599924,3089.2,3088.7,1.15256]
[1732075923828,3.2970924,3089.2,3088.8,0.06714194]
[1732075924140,3.2970924,3089.2,3088.7,0.8288]
[1732075924344,3.95049864,3089.2,3088.7,0.8288]
[1732075924569,3.23731,3089.0,3088.7,0.8288]
[1732075924866,0.0599924,3088.9,3088.7,0.8288]
[1732075925236,3.2371,3089.2,3088.7,0.8288]
[1732075925436,3.23691,3089.4,3088.8,0.32374]
[1732075925655,3.23691,3089.4,3088.7,0.8288]
[1732075925656,3.637561,3089.4,3088.7,0.8288]
[1732075925866,3.6975534,3089.4,3088.7,0.8288]
[1732075926575,3.23697,3089.3,3088.7,0.8288]
[1732075926875,3.23742,3088.9,3088.3,0.7987]
[1732075927035,3.23742,3088.9,3088.3,1.1225]
[1732075927036,0.0599924,3088.8,3088.3,1.1225]
[1732075927735,3.2975624,3088.8,3088.3,0.7987]
[1732075927972,3.62730364,3088.8,3088.3,0.7987]
[1732075928330,3.23762,3088.7,3088.3,0.7987]
[1732075928537,0.0599924,3088.6,3088.3,0.7987]
[1732075929279,0.32974124,3088.8,3088.4,0.06717]
[1732075929280,0.0599924,3088.7,3088.4,0.06717]
[1732075929656,0.0599924,3088.7,3088.3,0.7987]
[1732075930056,0.0599924,3088.7,3088.4,0.06720024]
[1732075930290,0.0599924,3088.7,3088.3,0.7987]
[1732075930487,0.0599924,3088.7,3088.4,0.06720024]
[1732075930701,0.0599924,3088.7,3088.3,0.7987]
[1732075931306,0.0599924,3088.7,3088.4,0.06720024]
[1732075931808,0.0599924,3088.7,3088.3,0.7987]
[1732075932092,0.0599924,3088.7,3088.4,0.06720024]
[1732075932400,0.0599924,3088.7,3088.4,0.32379]
[1732075932600,0.0599924,3089.1,3088.4,0.32379]
[1732075932899,0.0599924,3089.1,3088.6,0.32377]
[1732075932900,3.67483813,3089.1,3088.6,0.32377]
[1732075933400,6.23675,3089.6,3088.8,0.32374]
[1732075933557,6.23675,3089.6,3088.6,0.32377]
[1732075933558,0.8048,3089.5,3088.6,0.32376]
[1732075933755,0.33768469,3089.2,3088.6,0.32376]
[1732075933959,4.00701664,3089.4,3088.6,0.32376]
[1732075934304,4.34470213,3089.4,3088.8,0.32374]
[1732075934454,4.34470213,3089.4,3088.5,0.7682]
[1732075934455,1.04783973,3089.4,3088.5,0.7682]
[1732075934793,1.04783973,3089.4,3089.0,0.32372]
[1732075934999,0.33768549,3089.4,3089.0,0.32372]
[1732075935361,0.33768549,3089.4,3088.9,0.7682]
[1732075935704,0.0599924,3089.3,3088.9,0.7682]
[1732075936403,0.0599924,3089.3,3088.9,1.09193]
[1732075936560,0.0599924,3089.3,3088.9,0.7682]
[1732075937500,3.2970624,3089.3,3088.6,1.09196]
[1732075937686,0.0599924,3089.3,3088.6,1.09196]
[1732075937897,0.33768549,3089.4,3088.6,0.7682]
[1732075938206,0.33768549,3089.4,3089.1,1.09191]
[1732075938787,0.33768549,3089.4,3089.2,0.3237]
[1732075938998,0.8048,3089.8,3089.3,0.32369]
[1732075939178,0.8048,3090.0,3089.3,0.32369]
[1732075939365,3.2963524,3089.9,3089.3,0.32369]
[1732075939571,1.13441724,3090.0,3089.4,0.32368]
[1732075939795,1.13441724,3090.0,3089.3,0.32369]
[1732075939991,3.73340212,3089.9,3089.3,0.32369]
[1732075940848,3.73340212,3089.9,3089.1,1.09191]
[1732075940849,3.23645,3089.8,3089.1,1.41562]
[1732075940982,3.73340212,3089.9,3089.1,1.09191]
[1732075940983,0.0599924,3089.7,3089.1,1.09191]
[1732075941168,0.0599924,3089.7,3089.3,0.32369]
[1732075941370,0.0599924,3089.7,3089.1,1.41562]
[1732075941804,0.0599924,3089.7,3089.2,0.06691774]
[1732075942597,0.43334361,3089.7,3089.2,0.06691774]
[1732075942785,0.8108,3089.5,3089.2,0.06691774]
[1732075942986,0.0599924,3089.4,3089.0,0.32372]
[1732075943406,0.0599924,3089.4,3089.1,0.06691989]
[1732075943809,0.0599924,3089.4,3089.0,0.32372]
[1732075944013,0.0599924,3089.4,3089.2,0.06691774]
[1732075944197,0.0599924,3089.4,3089.1,0.06691989]
[1732075944413,0.0599924,3089.4,3089.0,0.32372]
[1732075944611,0.0599924,3089.4,3089.2,0.06691774]
[1732075944797,0.0599924,3089.4,3089.1,0.06691989]
[1732075944997,0.0599924,3089.4,3089.0,0.32372]
[1732075945229,0.0599924,3089.4,3089.2,0.06691774]
[1732075945538,0.0599924,3089.4,3089.0,0.32372]
[1732075945694,0.8108,3089.5,3089.0,0.32372]
[1732075945890,0.7904,3089.7,3088.9,0.7584]
[1732075946233,0.7904,3089.7,3089.3,0.32369]
[1732075946532,4.02702,3089.7,3089.1,0.32371]
[1732075946831,0.7904,3089.7,3089.1,0.32371]
[1732075947015,3.23641,3089.9,3089.3,0.32369]
[1732075947219,0.8503924,3090.0,3089.4,0.32368]
[1732075947421,4.0867124,3090.0,3089.4,0.32368]
[1732075947713,5.11899164,3090.0,3089.3,0.32369]
[1732075948991,5.11899164,3090.0,3089.4,0.32368]
[1732075949541,1.82267924,3090.0,3089.5,0.32367]
[1732075949704,3.23606,3090.2,3089.6,0.32365]
[1732075949903,3.2960524,3090.2,3089.6,0.32365]
[1732075951014,3.23614,3090.1,3089.6,0.32365]
[1732075951231,3.96839924,3090.1,3089.6,0.32365]
[1732075951520,4.02635,3090.3,3089.7,0.32365]
[1732075951719,0.7904,3090.3,3089.8,1.09903]
[1732075951902,3.2957824,3090.5,3089.8,1.42266]
[1732075952117,0.65314424,3090.4,3089.8,1.09903]
[1732075952562,0.0599924,3090.3,3089.8,1.09903]
[1732075952709,3.23605,3090.2,3089.8,0.7754]
[1732075953046,0.8503924,3090.1,3089.5,0.7754]
[1732075953207,0.8503924,3090.1,3089.9,0.06686558]
[1732075953407,3.23624,3090.0,3089.4,0.32368]
[1732075953608,0.0599924,3089.9,3089.4,0.32368]
[1732075954340,0.0599924,3089.9,3089.5,0.32367]
[1732075954758,0.0599924,3089.9,3089.6,0.32366]
[1732075954918,0.0599924,3090.0,3089.5,0.32367]
[1732075955256,3.2962924,3090.0,3089.4,0.32367]
[1732075955414,3.2962924,3090.0,3089.6,0.06688283]
[1732075955608,3.2962924,3090.0,3089.4,0.32367]
[1732075955902,3.23609,3090.2,3089.3,0.7754]
[1732075956156,3.23609,3090.2,3089.7,0.32365]
[1732075956360,3.23615,3090.1,3089.5,0.32366]
[1732075956509,3.23609,3090.2,3089.5,0.32366]
[1732075956715,3.23609,3090.2,3089.6,0.32366]
[1732075957320,0.8503924,3090.3,3089.6,0.32366]
[1732075957566,4.49498464,3090.3,3089.7,0.32364]
[1732075957715,0.7904,3090.3,3089.8,0.32363]
[1732075957916,3.23584,3090.4,3089.9,1.09903]
[1732075958261,3.88298,3090.4,3089.9,1.09903]
[1732075958959,0.7904,3090.5,3090.0,0.32361]
[1732075959121,0.7904,3090.5,3089.9,1.09903]
[1732075959318,0.0599924,3090.4,3089.9,1.42265]
[1732075959658,0.0599924,3090.4,3090.0,0.32362]
[1732075960024,0.7904,3090.5,3090.0,0.32362]
[1732075960228,0.0599924,3090.4,3090.0,0.32362]
[1732075960436,0.0599924,3090.4,3090.1,0.32361]
[1732075960637,3.23543,3090.8,3090.1,0.32361]
[1732075960852,3.6189654,3090.8,3090.1,0.32361]
[1732075961057,3.6189654,3090.8,3090.2,0.32359]
[1732075961424,3.6189654,3090.8,3090.1,0.32361]
[1732075961618,3.23552,3090.7,3090.1,0.32361]
[1732075961958,0.3835354,3090.8,3090.2,0.3236]
[1732075962163,0.323543,3090.8,3090.3,1.13268]
[1732075962315,0.7904,3090.9,3090.4,0.32358]
[1732075963068,4.02571,3090.9,3090.4,0.32358]
[1732075963270,0.0599924,3090.8,3090.3,0.8091]
[1732075963555,3.2954724,3090.8,3090.1,1.1327]
[1732075964070,3.23551,3090.7,3090.1,1.1327]
[1732075964219,0.0599924,3090.6,3090.1,1.1327]
[1732075965236,3.2956324,3090.6,3090.1,1.1327]
[1732075966664,3.2956324,3090.6,3090.1,0.8091]
[1732075966963,3.23606,3090.2,3089.8,0.8091]
[1732075967130,3.2961424,3090.1,3089.5,1.13277]
[1732075967359,6.5323824,3090.1,3089.5,0.8091]
[1732075967595,3.23615,3090.1,3089.5,0.8091]
[1732075967743,0.0599924,3090.0,3089.5,1.13277]
[1732075969002,3.2962624,3090.0,3089.5,0.8091]
[1732075969291,3.2962624,3090.0,3089.6,0.06684296]
[1732075969464,3.2962624,3090.0,3089.5,0.8091]
[1732075969657,3.2962624,3090.0,3089.6,0.06684296]
[1732075969862,3.2962624,3090.0,3089.5,0.8091]
[1732075970172,3.2962624,3090.0,3089.6,0.06684296]
[1732075970562,3.2962624,3090.0,3089.5,0.8091]
[1732075971007,3.23637,3089.9,3089.5,0.8091]
[1732075971293,3.23656,3089.7,3089.6,0.06684296]
[1732075971460,3.23656,3089.7,3089.0,1.13282]
[1732075971662,3.2966724,3089.6,3089.0,1.13282]
[1732075971855,3.2966724,3089.6,3089.1,0.06688718]
[1732075972562,3.23691,3089.4,3089.1,0.06688718]
[1732075972778,0.0599924,3089.3,3089.1,0.06688718]
[1732075972975,3.23708,3089.2,3088.7,0.8091]
[1732075973162,0.0599924,3089.1,3088.7,1.13285]
[1732075973348,0.0599924,3089.1,3088.8,0.0669147]
[1732075973775,0.0599924,3089.1,3088.7,1.13285]
[1732075973978,0.0599924,3089.1,3088.9,0.06692766]
[1732075974158,3.2969824,3089.3,3088.8,0.06692981]
[1732075974494,3.2372,3089.1,3088.7,0.8091]
[1732075974704,3.2971924,3089.1,3088.7,0.8091]
[1732075974863,0.0599924,3089.1,3088.7,0.8091]
[1732075975071,3.23699,3089.3,3088.8,0.06692981]
[1732075975072,0.0599924,3089.2,3088.8,0.06692981]
[1732075975287,0.0599924,3089.2,3088.7,1.13285]
[1732075975469,0.0599924,3089.2,3088.8,0.06692981]
[1732075975655,0.0599924,3089.2,3088.7,1.13285]
[1732075976056,0.0599924,3089.2,3088.8,0.06692981]
[1732075976258,0.0599924,3089.2,3088.8,0.32374]
[1732075976454,0.0599924,3089.2,3088.7,1.13285]
[1732075976455,3.23699,3089.3,3088.9,0.06693413]
[1732075976658,3.23699,3089.3,3088.7,1.13285]
[1732075976956,6.47407,3089.3,3088.7,1.13285]
[1732075977273,0.0599924,3089.2,3088.7,0.8091]
[1732075977473,0.0599924,3089.2,3088.8,0.06693521]
[1732075977474,3.23719,3089.1,3088.8,0.06693521]
[1732075977685,0.0599924,3089.0,3088.7,0.8091]
[1732075977983,0.0599924,3089.0,3088.8,0.06693521]
[1732075978167,3.2970824,3089.2,3088.8,0.06693521]
[1732075978373,3.2970824,3089.2,3088.7,0.8091]
[1732075978583,0.0599924,3089.2,3088.7,0.8091]
[1732075978762,0.0599924,3089.2,3088.8,0.06693629]
[1732075979109,0.0599924,3089.2,3088.7,0.8091]
[1732075979286,3.2971524,3089.2,3088.8,0.06693629]
[1732075979601,3.2971524,3089.2,3088.7,0.8091]
[1732075982622,3.2971524,3089.2,3088.7,1.13286]
[1732075982837,0.0599924,3089.2,3088.7,0.8091]
[1732075983123,4.0386,3089.4,3088.8,0.32374]
[1732075983321,0.0599924,3089.3,3088.7,0.8091]
[1732075983539,0.0599924,3089.3,3088.8,0.06693629]
[1732075983540,3.23714,3089.2,3088.8,0.06693629]
[1732075983829,0.46985164,3089.3,3088.8,0.06693629]
[1732075983830,3.2972024,3089.1,3088.8,0.06693629]
[1732075984128,3.23769,3088.7,3088.1,0.8091]
[1732075984326,0.0599924,3088.6,3088.1,1.13291]
[1732075984478,0.0599924,3088.6,3088.2,0.06699619]
[1732075984677,0.0599924,3088.6,3088.2,0.39080619]
[1732075984914,3.2975724,3088.8,3088.2,0.39080619]
[1732075985225,0.0599924,3088.8,3088.2,0.3238]
[1732075985434,4.03909,3088.9,3088.4,0.32379]
[1732075985714,3.2372,3089.1,3088.5,0.8091]
[1732075986119,0.8017,3089.2,3088.5,0.8091]
[1732075986341,3.23702,3089.3,3088.6,0.32376]
[1732075986680,3.23702,3089.3,3088.7,0.32375]
[1732075986932,0.8616924,3089.4,3088.8,0.32374]
[1732075987089,3.23679,3089.5,3088.9,0.8091]
[1732075987090,3.23676,3089.5,3088.9,0.8091]
[1732075987291,3.23676,3089.5,3088.9,1.13283]
[1732075987505,0.8017,3089.6,3088.9,0.8091]
[1732075987718,3.2965924,3089.7,3088.9,0.8091]
[1732075988289,0.0599924,3089.7,3089.1,0.32371]
[1732075988601,0.8017,3089.8,3089.3,0.8091]
[1732075988815,4.03816,3089.8,3089.3,0.8091]
[1732075989004,0.8017,3089.8,3089.3,0.8091]
[1732075989181,0.8017,3089.8,3089.3,1.13278]
[1732075989520,3.23614,3090.1,3089.5,0.32367]
[1732075989521,4.03784,3090.1,3089.5,0.32367]
[1732075989941,3.23614,3090.1,3089.5,0.32367]
[1732075990583,3.23605,3090.2,3089.7,0.8091]
[1732075990786,3.23614,3090.1,3089.7,0.8091]
[1732075991030,3.96951824,3090.1,3089.7,0.8091]
[1732075991329,3.96951824,3090.1,3089.8,0.06694033]
[1732075991489,3.96951824,3090.1,3089.7,0.8091]
[1732075991689,3.23614,3090.1,3089.8,0.06694033]
[1732075991920,3.23614,3090.1,3089.7,0.8091]
[1732075991921,3.2962724,3090.0,3089.7,0.8091]
[1732075994732,0.0599924,3090.0,3089.7,0.8091]
[1732075995027,3.23605,3090.2,3089.7,0.8091]
[1732075995540,0.0599924,3090.1,3089.7,0.8091]
[1732075995836,3.23615,3090.1,3089.8,0.06690776]
[1732075996193,3.23615,3090.1,3089.7,0.8091]
[1732075996495,4.0976924,3090.3,3089.7,0.8091]
[1732075996829,3.23605,3090.2,3089.7,0.8091]
[1732075998293,0.8616924,3090.3,3089.7,1.13274]
[1732075998490,3.23566,3090.6,3089.7,1.13274]
[1732075998491,0.8179,3090.5,3089.9,0.32362]
[1732075998754,0.8179,3090.9,3090.2,0.32359]
[1732075999050,0.0599924,3091.1,3090.4,0.32357]
[1732075999229,4.05292,3091.2,3090.6,0.32355]
[1732075999395,4.05292,3091.2,3090.5,0.06686861]
[1732075999396,4.5182044,3091.2,3090.5,0.06686861]
[1732075999595,0.4652844,3091.2,3090.8,0.8256]
[1732075999796,3.2348,3091.4,3090.8,1.14913]
[1732076000818,0.8778924,3091.5,3090.9,0.32353]
[1732076001035,0.41125024,3091.4,3090.9,0.32353]
[1732076002842,0.8179,3091.5,3090.9,0.32352]
[1732076003051,0.01,3092.2,3090.9,0.32352]
[1732076003052,3.23448,3091.7,3091.2,0.8256]
[1732076003201,3.23427,3091.9,3091.2,0.8256]
[1732076003510,3.639587,3091.8,3091.2,1.14909]
[1732076003711,3.23437,3091.8,3091.2,1.14909]
[1732076004497,0.0599924,3091.7,3091.2,1.14909]
[1732076005040,3.2944624,3091.7,3091.2,0.8256]
[1732076005594,0.71287564,3091.7,3090.9,0.8176]
[1732076005799,3.23468,3091.5,3090.9,0.8176]
[1732076006040,3.23468,3091.5,3091.0,0.06669912]
[1732076006346,3.23468,3091.5,3090.9,0.8176]
[1732076006728,0.8179,3092.0,3090.9,0.8176]
[1732076006729,3.2348,3091.4,3090.9,0.8176]
[1732076006893,3.23502,3091.2,3090.6,0.32355]
[1732076007094,3.23502,3091.2,3090.7,0.06670935]
[1732076008853,3.23502,3091.2,3090.6,0.32355]
[1732076009055,3.23479,3091.4,3090.6,0.32355]
[1732076009257,3.23458,3091.6,3090.9,0.32352]
[1732076009443,3.23458,3091.6,3091.1,0.8176]
[1732076009965,0.0599924,3091.5,3091.1,0.8176]
[1732076010164,0.0599924,3091.5,3091.2,0.06670883]
[1732076010457,0.0599924,3091.5,3091.1,0.8176]
[1732076011454,3.2947424,3091.5,3091.1,0.8176]
[1732076011642,3.23481,3091.4,3091.1,0.8176]
[1732076012311,3.23458,3091.6,3091.1,0.8176]
[1732076012508,4.368862,3091.8,3091.1,0.8176]
[1732076012509,4.368862,3091.8,3091.1,1.1411]
[1732076012706,4.368862,3091.8,3091.2,0.06669101]
[1732076012707,3.598362,3091.8,3091.2,0.06669101]
[1732076012892,3.598362,3091.8,3091.1,1.1411]
[1732076013098,0.4651924,3091.9,3091.3,0.32348]
[1732076013099,3.63945,3091.9,3091.3,0.32348]
[1732076013416,3.63945,3091.9,3091.4,0.8176]
[1732076013713,0.4052,3091.9,3091.4,1.14107]
[1732076013914,0.4052,3091.9,3091.4,0.8176]
[1732076014070,3.63946,3091.9,3091.4,0.8176]
[1732076014266,0.0599924,3091.8,3091.4,0.8176]
[1732076014467,0.4052,3091.9,3091.4,0.8176]
[1732076014714,0.0599924,3091.8,3091.4,0.8176]
[1732076014913,0.7705,3091.7,3091.0,0.8176]
[1732076015211,3.23474,3091.5,3091.1,0.06668889]
[1732076015611,3.23474,3091.5,3091.0,0.8176]
[1732076015811,3.23489,3091.3,3091.0,0.8176]
[1732076016319,3.55308492,3091.5,3091.0,0.8176]
[1732076016606,3.55308492,3091.5,3091.1,0.06668781]
[1732076017009,3.55308492,3091.5,3091.0,0.8176]
[1732076017378,4.00499,3091.7,3091.0,1.14111]
[1732076017671,3.23449,3091.7,3091.0,1.14111]
[1732076018120,3.2346,3091.6,3091.0,1.14111]
[1732076018296,3.2346,3091.6,3091.0,1.48446209]
[1732076018468,3.23449,3091.7,3091.1,0.06669589]
[1732076018671,3.23449,3091.7,3091.0,1.14111]
[1732076018672,3.23457,3091.6,3091.0,1.48446209]
[1732076018895,3.23457,3091.6,3091.1,0.34335209]
[1732076019098,3.23449,3091.7,3091.0,1.14111]
[1732076019313,3.23449,3091.7,3091.1,0.34335209]
[1732076019477,3.23449,3091.7,3091.1,0.66685209]
[1732076020394,3.23467,3091.5,3091.1,0.34335209]
[1732076020724,3.23467,3091.5,3091.0,0.99891243]
[1732076020725,0.0599924,3091.4,3091.0,0.8176]
[1732076020940,0.0599924,3091.4,3091.0,1.16095209]
[1732076021237,0.0599924,3091.4,3091.1,0.41004025]
[1732076022281,0.0599924,3091.4,3091.1,0.06668816]
[1732076022705,3.23467,3091.5,3091.2,0.33843316]
[1732076023125,3.23467,3091.5,3091.0,1.14111]
[1732076023328,3.23467,3091.5,3091.1,0.33856461]
[1732076023482,3.23467,3091.5,3091.0,1.14111]
[1732076023694,0.0599924,3091.4,3091.1,0.3385575]
[1732076024002,0.0599924,3091.4,3091.2,0.40524351]
[1732076024207,0.0599924,3091.4,3091.3,0.3385575]
[1732076024415,0.0599924,3091.4,3091.3,0.40524136]
[1732076025641,0.0599924,3091.4,3091.3,0.3385575]
[1732076025931,3.2345,3091.7,3091.3,0.40524136]
[1732076025932,3.2946424,3091.6,3091.3,0.40524136]
[1732076026136,3.23468,3091.5,3091.4,0.3385575]
[1732076028197,3.23468,3091.5,3091.4,0.90751198]
[1732076028535,3.23468,3091.5,3091.4,0.97421094]
[1732076029034,3.2345,3091.7,3091.4,0.57799672]
[1732076029249,3.2345,3091.7,3091.5,0.90907101]
[1732076029390,3.23457,3091.6,3091.5,0.39777002]
[1732076029593,3.23457,3091.6,3091.5,0.97750649]
[1732076029829,3.23457,3091.6,3091.5,0.91081076]
[1732076030110,3.23457,3091.6,3091.5,0.34015939]
[1732076030311,3.2345,3091.7,3091.5,1.13205939]
[1732076030600,3.2345,3091.7,3091.6,0.57973203]
[1732076030795,3.23428,3091.9,3091.6,0.57973203]
[1732076030991,3.23428,3091.9,3091.5,0.7919]
[1732076030992,3.23436,3091.8,3091.7,0.91088004]
[1732076031239,3.23436,3091.8,3091.7,0.6713074]
[1732076031439,3.958274,3091.8,3091.7,0.6713074]
[1732076031723,3.958274,3091.8,3091.7,0.34015939]
[1732076032717,4.0182664,3091.8,3091.7,0.34015939]
[1732076034321,4.7682664,3091.8,3091.7,0.34015939]
[1732076034550,3.23478,3091.4,3091.2,0.33114801]
[1732076034857,3.23478,3091.4,3091.3,0.56017113]
[1732076035635,3.23478,3091.4,3091.3,0.32040707]
[1732076036142,3.23478,3091.4,3091.3,0.56020199]
[1732076039399,3.23478,3091.4,3091.3,0.32040707]
[1732076039891,3.23478,3091.4,3090.9,0.7919]
[1732076040049,3.23478,3091.4,3091.0,0.634682]
[1732076040250,1.473914,3091.8,3091.1,0.30328853]
[1732076040501,3.23486,3091.4,3091.2,0.30328853]
[1732076040683,3.2948724,3091.3,3090.9,1.12329347]
[1732076040885,3.2948724,3091.3,3091.0,0.30329355]
[1732076041093,3.2948724,3091.3,3090.9,1.12329347]
[1732076041094,3.23498,3091.2,3091.1,0.30329355]
[1732076041681,3.23498,3091.2,3090.9,0.7919]
[1732076041909,3.23519,3091.0,3090.7,1.12359347]
[1732076042263,3.23519,3091.0,3090.8,0.30330219]
[1732076042488,3.23519,3091.0,3090.9,0.30330219]
[1732076043809,3.03519,3091.0,3090.9,0.30330219]
[1732076044156,3.23498,3091.2,3090.9,0.30330219]
[1732076044367,3.23498,3091.2,3090.7,0.7922]
[1732076044713,3.235,3091.2,3090.8,0.30319752]
[1732076044999,3.235,3091.2,3090.9,0.30318086]
[1732076045174,3.235,3091.2,3090.7,1.11574]
[1732076045370,3.235,3091.2,3090.8,0.30310663]
[1732076045573,3.235,3091.2,3090.9,0.30310663]
[1732076045776,3.235,3091.2,3091.0,0.30310663]
[1732076046095,3.235,3091.2,3090.8,0.30310663]
[1732076046327,3.235,3091.2,3090.9,0.30310663]
[1732076046527,0.0599924,3091.1,3090.7,0.96925892]
[1732076046729,0.0599924,3091.1,3090.8,0.3031703]
[1732076046938,0.0599924,3091.1,3090.8,0.06671681]
[1732076047237,3.0,3091.9,3091.1,0.3235]
[1732076047438,3.23458,3091.6,3091.1,0.62667776]
[1732076047729,3.23458,3091.6,3091.2,0.30306783]
[1732076048034,0.0599924,3091.5,3091.2,0.06670928]
[1732076048238,3.2946824,3091.5,3091.1,0.3031277]
[1732076048398,3.23479,3091.4,3091.1,0.3031277]
[1732076048594,3.23479,3091.4,3091.0,0.7922]
[1732076048793,6.46967,3091.4,3091.0,0.7922]
[1732076049117,3.2949124,3091.3,3090.8,0.7922]
[1732076049320,3.23492,3091.3,3090.9,0.30321856]
[1732076049523,3.2949924,3091.2,3090.8,0.7922]
[1732076049690,3.2949924,3091.2,3090.9,0.30321899]
[1732076050043,3.2949924,3091.2,3090.9,0.36993041]
[1732076050234,0.0599924,3091.2,3090.9,0.30321899]
[1732076050403,0.0599924,3091.2,3090.8,0.7922]
[1732076050608,0.0599924,3091.2,3090.9,0.30323952]
[1732076050807,0.0599924,3091.2,3090.8,0.7922]
[1732076051116,0.0599924,3091.2,3090.9,0.30321288]
[1732076051302,0.0599924,3091.2,3090.8,0.7922]
[1732076051505,0.0599924,3091.2,3090.9,0.30320326]
[1732076051732,0.0599924,3091.2,3090.9,0.30320834]
[1732076051934,0.0599924,3091.2,3090.8,0.7922]
[1732076052148,0.0599924,3091.2,3090.9,0.30319607]
[1732076052441,0.0599924,3091.2,3090.8,0.7922]
[1732076052600,0.0599924,3091.2,3090.9,0.30314222]
[1732076052801,3.23492,3091.3,3091.0,0.30314222]
[1732076053114,3.23492,3091.3,3090.9,0.30314222]
[1732076053299,3.23492,3091.3,3091.0,0.30314222]
[1732076053499,3.23492,3091.3,3090.9,0.30314222]
[1732076053832,3.23478,3091.4,3091.0,0.30314222]
[1732076054166,3.23472,3091.5,3091.0,0.32351]
[1732076054333,3.23472,3091.5,3090.9,0.32352]
[1732076054669,3.23472,3091.5,3091.0,0.30302318]
[1732076054867,0.8196,3091.6,3090.9,0.32352]
[1732076055095,4.0542,3091.6,3091.0,0.30303433]
[1732076055231,4.0542,3091.6,3091.0,0.32351]
[1732076055432,4.0542,3091.6,3091.1,0.30302932]
[1732076056146,3.23437,3091.8,3091.2,0.7708]
[1732076056367,3.23437,3091.8,3091.2,1.39731932]
[1732076056678,3.23437,3091.8,3091.3,0.30296011]
[1732076057265,3.23437,3091.8,3091.3,0.62644011]
[1732076057590,3.23417,3092.0,3091.5,0.7708]
[1732076057784,3.23428,3091.9,3091.5,0.7708]
[1732076058071,3.23428,3091.9,3091.5,1.07369953]
[1732076058276,0.5478,3092.1,3091.5,1.39715953]
[1732076058277,3.2341,3092.1,3091.5,1.39715953]
[1732076058472,3.23397,3092.2,3091.5,1.09426]
[1732076058675,3.23397,3092.2,3091.6,0.36959883]
[1732076058889,3.23397,3092.2,3091.6,0.69304883]
[1732076059066,3.23386,3092.3,3091.7,0.32344]